bitfinex/quotes_ETHUSD_20241130
["timestamp","ask_amount","ask_price","bid_price","bid_amount"]
[1732958544807,0.09427205,3686.2,3685.5,2.78407]
[1732958545153,0.09427205,3686.2,3685.3,2.98437]
[1732958545442,0.09427205,3686.2,3685.5,2.71332]
[1732958546015,0.09427205,3686.2,3685.6,2.71325]
[1732958546348,0.09427205,3686.5,3685.4,0.55]
[1732958546706,0.09427205,3686.5,3685.7,2.71312]
[1732958546908,0.25260636,3686.4,3685.7,2.71312]
[1732958547102,0.09427205,3686.2,3685.4,2.71336]
[1732958547336,0.09427205,3686.4,3685.4,2.71336]
[1732958547538,0.09427205,3686.4,3685.7,2.71318]
[1732958547847,0.09427205,3686.4,3685.5,0.542236]
[1732958547848,0.09427205,3686.6,3685.5,0.542236]
[1732958548056,0.09427205,3686.8,3685.8,0.71309]
[1732958548346,0.09427205,3686.8,3686.2,1.5075]
[1732958548507,0.09427205,3686.6,3686.1,2.22038]
[1732958549325,0.09427205,3686.8,3686.1,2.22038]
[1732958549741,0.09427205,3686.6,3685.9,2.71299]
[1732958549955,0.09427205,3686.6,3686.0,0.569693]
[1732958550647,0.09427205,3686.3,3685.7,2.98408]
[1732958551539,0.09427205,3686.3,3685.7,4.49158]
[1732958552145,0.09427205,3686.3,3685.7,4.22068]
[1732958553159,0.09427205,3686.3,3685.7,1.5075]
[1732958553530,1.5942,3686.4,3685.6,2.71325]
[1732958553531,0.09427205,3686.1,3685.6,2.71325]
[1732958554277,0.09427205,3686.1,3685.6,3.446601]
[1732958557291,1.5942,3686.4,3685.7,2.71318]
[1732958557567,1.5942,3686.4,3685.6,0.733351]
[1732958557568,1.68847205,3686.4,3685.8,2.71311]
[1732958558077,1.68847205,3686.4,3685.7,2.71318]
[1732958558233,1.68847205,3686.4,3685.4,0.2709]
[1732958558234,1.68847205,3686.4,3685.9,2.71302]
[1732958560933,0.09427205,3686.6,3686.0,1.6359]
[1732958561469,0.09427205,3686.6,3686.2,2.7128]
[1732958564382,1.73807205,3687.2,3686.5,2.71256]
[1732958564534,1.73807205,3687.2,3686.9,2.71227]
[1732958564743,0.09427205,3687.2,3687.0,2.71215]
[1732958564942,1.6438,3687.5,3687.2,2.71206]
[1732958565149,0.25274731,3687.4,3687.3,2.71198]
[1732958565349,1.6438,3687.5,3687.3,2.71198]
[1732958566372,0.93314619,3687.7,3687.3,2.71198]
[1732958566581,1.27651125,3687.7,3687.3,2.71198]
[1732958566887,0.09427205,3687.5,3687.3,2.71198]
[1732958567263,0.09427205,3687.5,3686.6,4.34838]
[1732958567603,1.02741824,3687.7,3687.1,2.71208]
[1732958567758,1.02741824,3687.7,3687.4,2.71192]
[1732958568996,1.02741824,3687.7,3687.3,2.712]
[1732958570390,1.02741824,3687.7,3687.2,1.5412]
[1732958570391,1.02741824,3687.7,3687.4,2.71192]
[1732958571075,1.02741824,3687.7,3687.2,1.5412]
[1732958571280,1.02741824,3687.7,3687.3,2.71199]
[1732958572189,1.02741824,3687.7,3687.2,1.5412]
[1732958572414,1.02741824,3687.7,3687.4,2.71192]
[1732958572780,0.09427205,3687.4,3686.7,1.8121]
[1732958572982,0.09427205,3687.4,3687.0,2.71216]
[1732958574613,0.09427205,3687.4,3686.7,1.8121]
[1732958574614,0.09427205,3687.4,3686.9,2.71224]
[1732958574990,1.33038523,3687.7,3687.2,2.71202]
[1732958575322,0.93314619,3687.7,3687.2,2.71202]
[1732958575504,1.02741824,3687.7,3687.2,2.71202]
[1732958576048,1.6438,3687.8,3687.2,2.71202]
[1732958576049,1.6438,3687.8,3687.4,2.71192]
[1732958576514,1.73807205,3687.8,3687.4,2.71192]
[1732958576676,1.6438,3687.8,3687.3,1.5538]
[1732958576874,1.73807205,3687.8,3687.3,4.2658]
[1732958577628,1.6438,3687.8,3687.3,4.2658]
[1732958577779,1.73807205,3687.8,3687.4,2.71191]
[1732958577974,1.73807205,3687.8,3687.2,2.71208]
[1732958577975,1.77196869,3687.8,3687.2,2.71208]
[1732958578179,1.73807205,3687.8,3687.2,2.71208]
[1732958578551,1.73807205,3687.8,3687.2,2.71202]
[1732958578552,0.09427205,3687.5,3687.2,2.71202]
[1732958580649,0.09427205,3687.5,3687.0,2.71222]
[1732958580803,0.09427205,3687.5,3687.1,2.71215]
[1732958581008,1.6147,3687.4,3687.1,2.71215]
[1732958582895,0.93314619,3687.6,3686.6,0.2709]
[1732958583091,1.70897205,3687.7,3687.3,2.71196]
[1732958584301,0.93314619,3687.9,3687.6,2.71179]
[1732958585605,1.6147,3687.4,3687.2,2.71206]
[1732958585991,1.6147,3687.4,3687.1,2.71214]
[1732958588740,1.6147,3687.4,3687.2,2.71202]
[1732958589036,0.09427205,3687.5,3687.2,2.71202]
[1732958589526,0.09427205,3687.5,3687.4,2.71193]
[1732958589870,0.09427205,3687.5,3687.2,2.71206]
[1732958590046,0.09427205,3687.5,3687.3,2.712]
[1732958590209,1.62747205,3688.0,3686.9,2.7123]
[1732958590534,1.62747205,3688.0,3687.5,2.71185]
[1732958590535,0.25287785,3687.9,3687.5,2.71185]
[1732958590838,2.56061824,3688.0,3687.6,2.71173]
[1732958591135,0.25287886,3687.9,3687.6,2.71178]
[1732958591338,0.25287886,3687.8,3687.6,2.71178]
[1732958591523,2.91906992,3688.0,3687.6,2.71178]
[1732958591838,0.25295291,3687.9,3687.6,2.71178]
[1732958592013,2.91906992,3688.0,3687.6,2.71178]
[1732958592212,2.91906992,3688.0,3687.7,0.20304432]
[1732958592524,0.25295407,3687.9,3687.8,0.20304432]
[1732958594437,0.65819997,3687.9,3687.8,0.20304432]
[1732958595498,0.25295407,3687.9,3687.3,0.55]
[1732958595699,0.25295407,3687.8,3687.2,0.55]
[1732958595900,0.25295407,3687.7,3686.9,1.6587]
[1732958596206,0.09427205,3687.7,3687.4,2.71193]
[1732958596405,0.09427205,3687.7,3686.9,1.6587]
[1732958596601,0.09427205,3687.7,3687.3,2.71194]
[1732958596801,0.09427205,3687.7,3687.3,2.70314]
[1732958597017,0.09427205,3687.7,3687.1,2.71215]
[1732958597321,0.09427205,3687.7,3686.7,2.71245]
[1732958597523,0.40530359,3687.9,3687.4,2.71188]
[1732958597721,0.25331584,3687.8,3687.2,2.71201]
[1732958597920,2.56061824,3688.0,3687.2,2.71201]
[1732958597921,0.25331584,3687.7,3687.2,2.71201]
[1732958598135,2.56061824,3688.0,3687.2,2.71201]
[1732958598334,2.56061824,3688.0,3682.5,1.76589022]
[1732958598335,0.09427205,3686.5,3684.9,0.00572795]
[1732958598519,1.5541,3686.7,3683.8,0.00165288]
[1732958598520,5.19969619,3686.7,3685.9,2.71297]
[1732958598853,5.19969619,3686.7,3685.1,0.93314619]
[1732958598854,5.19969619,3686.7,3686.0,2.71296]
[1732958599161,2.48724619,3686.7,3685.8,2.71311]
[1732958599333,2.48724619,3686.7,3686.0,2.71293]
[1732958599862,2.48724619,3686.7,3686.1,2.71289]
[1732958601567,2.48724619,3686.7,3685.9,3.263]
[1732958601764,5.19970619,3686.7,3685.9,3.263]
[1732958602062,5.19970619,3686.7,3685.9,3.884461]
[1732958602635,5.19970619,3686.7,3686.0,2.71295]
[1732958603090,5.19970619,3686.7,3686.2,0.27065497]
[1732958603267,0.03390849,3686.6,3686.2,0.27065497]
[1732958603435,5.19970619,3686.7,3686.1,0.27065497]
[1732958603629,2.48724619,3686.7,3686.2,0.27065497]
[1732958603829,2.71253,3686.6,3686.2,0.27065497]
[1732958604265,2.71253,3686.6,3686.1,0.27065497]
[1732958604833,2.71253,3686.6,3686.2,0.27065497]
[1732958605974,2.71253,3686.6,3685.9,3.884471]
[1732958606172,2.71253,3686.6,3686.1,0.27053605]
[1732958606642,0.93314619,3686.4,3686.1,0.27053605]
[1732958606844,3.64582619,3686.4,3686.1,0.27053605]
[1732958607150,3.64582619,3686.4,3686.0,0.27053605]
[1732958608032,3.64582619,3686.4,3685.7,2.71313]
[1732958608232,0.93314619,3686.4,3685.8,2.71308]
[1732958609035,0.93314619,3686.4,3685.9,0.20287457]
[1732958609235,0.25234625,3686.3,3685.8,2.71308]
[1732958609540,0.25234625,3686.2,3685.8,2.71308]
[1732958609729,0.93314619,3686.4,3685.7,3.279626]
[1732958609955,1.5539,3686.2,3685.7,3.279626]
[1732958610185,0.2523224,3686.1,3685.7,0.566496]
[1732958610495,1.5539,3686.2,3685.7,0.566496]
[1732958610700,1.5539,3686.2,3685.7,3.279666]
[1732958610859,0.93314619,3686.4,3685.8,0.3279666]
[1732958611061,0.93314619,3686.4,3685.9,2.71297]
[1732958614095,3.6797265,3686.4,3685.8,0.3279666]
[1732958614395,2.71282,3686.2,3685.5,2.71333]
[1732958614593,1.5539,3686.1,3685.6,0.55]
[1732958614798,1.5539,3686.1,3685.5,2.71333]
[1732958615001,1.5539,3686.1,3685.5,3.30697]
[1732958615202,1.5539,3686.1,3685.5,0.59364]
[1732958615497,1.5539,3686.1,3685.7,2.71313]
[1732958615799,1.5539,3686.1,3685.5,0.55]
[1732958615800,2.48704619,3686.1,3685.5,2.71332]
[1732958616111,2.52095901,3686.1,3685.5,2.71332]
[1732958616459,5.23385901,3686.1,3685.5,2.71332]
[1732958617061,2.71307,3685.9,3685.2,0.2385]
[1732958617266,2.71307,3685.9,3685.3,2.71346]
[1732958617471,5.55839787,3686.1,3685.4,2.7134]
[1732958617895,5.55839787,3686.1,3685.2,3.280117]
[1732958618097,5.55839787,3686.1,3685.5,2.71333]
[1732958618301,2.48704619,3686.1,3685.5,2.71333]
[1732958618502,2.48704619,3686.1,3685.6,2.71325]
[1732958619571,5.19994619,3686.1,3685.4,2.95186]
[1732958619775,5.55839787,3686.1,3685.5,2.71332]
[1732958622388,2.71297,3686.0,3685.4,0.55]
[1732958622713,2.71297,3686.0,3685.4,2.7134]
[1732958622876,2.71304,3685.9,3685.2,2.71348]
[1732958623383,2.71304,3685.9,3685.2,3.280048]
[1732958624121,2.71304,3685.9,3685.3,2.71347]
[1732958624577,5.19994619,3686.1,3685.3,2.71347]
[1732958625003,2.71298,3686.0,3685.3,2.71347]
[1732958625402,2.71305,3685.9,3685.2,3.280118]
[1732958625802,1.5539,3685.9,3685.2,3.280118]
[1732958625980,1.5539,3685.9,3685.2,2.71355]
[1732958626319,0.25165129,3685.8,3685.2,2.71355]
[1732958626521,1.5539,3685.9,3685.2,2.71355]
[1732958626676,0.25164419,3685.8,3685.2,2.71355]
[1732958626875,1.5539,3685.9,3685.2,2.71355]
[1732958627118,0.25164797,3685.8,3685.2,2.71355]
[1732958627316,1.5539,3685.9,3685.2,2.71355]
[1732958627619,0.25179101,3685.8,3685.2,2.71355]
[1732958627823,4.26698,3685.9,3685.2,2.71355]
[1732958627980,0.25179306,3685.8,3685.2,2.71355]
[1732958628188,4.26698,3685.9,3685.2,2.71355]
[1732958628494,0.25204554,3685.8,3685.2,2.71355]
[1732958628689,1.5539,3685.9,3684.8,0.55]
[1732958628891,0.25203813,3685.8,3685.2,2.71355]
[1732958629125,4.26695,3685.9,3685.2,2.71352]
[1732958629305,0.25207412,3685.8,3685.0,2.7137]
[1732958629504,4.26695,3685.9,3685.3,2.71347]
[1732958629709,0.25207636,3685.8,3685.3,2.71347]
[1732958630019,4.26695,3685.9,3685.3,2.71347]
[1732958630183,0.25207607,3685.8,3685.3,2.71347]
[1732958630376,1.5539,3685.9,3685.3,0.542709]
[1732958631720,0.93314619,3686.1,3684.7,0.2385]
[1732958631890,2.71349,3685.3,3684.6,2.71396]
[1732958632091,2.44204619,3685.2,3683.9,0.2385]
[1732958632281,5.15564619,3685.2,3684.2,2.71429]
[1732958632487,5.15564619,3685.2,3684.5,2.71407]
[1732958633288,1.6413,3683.9,3683.8,0.00165288]
[1732958633491,0.4113446,3684.4,3684.3,2.71415]
[1732958633678,1.6413,3684.6,3684.3,0.542851]
[1732958633897,1.6413,3684.6,3683.9,0.2385]
[1732958634220,1.6413,3685.0,3684.3,2.71418]
[1732958634526,1.6413,3685.0,3683.9,2.95295]
[1732958635024,1.6413,3685.0,3684.0,2.71444]
[1732958635186,2.0526446,3685.0,3683.9,0.2385]
[1732958635388,0.44526691,3684.9,3684.4,2.71414]
[1732958635906,0.4113446,3684.9,3684.4,2.71414]
[1732958636099,0.44526868,3684.9,3684.4,2.71414]
[1732958636711,0.4113446,3684.9,3684.4,2.71414]
[1732958637383,0.4113446,3684.9,3684.4,0.54285]
[1732958637587,1.6413,3685.0,3684.7,2.71385]
[1732958637897,1.6413,3685.0,3684.6,2.71398]
[1732958638601,1.6413,3685.0,3684.7,2.71389]
[1732958639288,1.6413,3685.0,3684.8,2.71382]
[1732958639922,1.6413,3685.0,3684.8,2.7138]
[1732958640428,1.6413,3685.4,3684.8,0.542772]
[1732958640725,1.6413,3685.4,3685.3,2.71348]
[1732958641641,1.6413,3685.8,3685.5,2.71327]
[1732958641838,1.6413,3685.8,3685.7,2.71318]
[1732958642131,1.6413,3686.2,3686.1,2.71289]
[1732958642287,0.4113446,3686.4,3686.2,2.71282]
[1732958642633,1.6413,3686.6,3686.3,2.71274]
[1732958642833,1.6413,3686.6,3686.5,2.7126]
[1732958643342,1.6413,3686.6,3686.3,2.71274]
[1732958643486,1.6413,3686.6,3685.6,0.55]
[1732958643688,2.4332394,3687.2,3685.6,0.55]
[1732958643689,1.8929555,3687.1,3686.7,2.71244]
[1732958643928,2.06584218,3687.1,3686.8,2.71235]
[1732958644134,1.6413,3687.1,3686.9,2.71228]
[1732958644806,1.6413,3687.1,3686.8,2.71235]
[1732958645317,1.6413,3687.1,3686.9,2.7123]
[1732958645705,1.6413,3687.1,3687.0,2.71223]
[1732958645931,1.6413,3687.5,3687.1,2.7121]
[1732958646225,2.31992094,3687.5,3687.1,2.7121]
[1732958646610,2.31992094,3687.5,3686.9,2.7123]
[1732958647229,2.31992094,3687.5,3687.2,2.71206]
[1732958647549,0.033901,3687.4,3687.0,2.71219]
[1732958650154,2.06932814,3687.2,3686.7,2.71245]
[1732958650340,2.06932814,3687.2,3686.8,2.71237]
[1732958651550,2.06932814,3687.2,3686.6,2.71249]
[1732958652143,2.06932814,3687.2,3686.3,0.55]
[1732958652451,1.6413,3687.5,3687.1,2.71208]
[1732958653852,1.6413,3687.5,3686.9,2.71224]
[1732958653853,1.67520043,3687.5,3686.9,2.71224]
[1732958654256,4.38706043,3687.5,3686.8,0.55]
[1732958654642,4.38706043,3687.5,3685.2,2.06932814]
[1732958654643,4.38706043,3687.5,3686.7,0.55]
[1732958654962,0.64563886,3687.4,3686.7,2.71243]
[1732958655177,0.64563886,3687.4,3685.9,5.71298]
[1732958655178,1.6025,3687.1,3686.3,2.71274]
[1732958655470,1.6025,3686.7,3686.0,2.71296]
[1732958655645,1.63640772,3686.7,3686.1,2.71289]
[1732958656034,1.6025,3686.7,3686.1,2.71289]
[1732958656678,4.31498,3686.7,3685.7,2.71318]
[1732958656862,4.62108614,3686.7,3685.7,2.71318]
[1732958657170,0.03391001,3686.6,3686.0,2.71296]
[1732958657378,4.62108614,3686.7,3686.0,2.71296]
[1732958657533,1.90860614,3686.7,3686.2,2.71277]
[1732958657732,1.90860614,3686.7,3686.1,2.71288]
[1732958657928,1.6025,3686.7,3686.2,0.55]
[1732958658967,1.6025,3686.7,3686.5,0.55]
[1732958659576,1.6025,3686.7,3686.3,0.55]
[1732958660539,1.6025,3686.7,3686.3,3.26272]
[1732958661360,0.7275,3686.7,3686.3,3.26272]
[1732958661969,0.7275,3686.7,3686.6,0.55]
[1732958662176,2.06932814,3687.6,3686.8,2.71237]
[1732958662341,4.78116814,3687.6,3686.9,0.55]
[1732958662543,0.03390228,3687.5,3686.9,0.55]
[1732958662883,4.78144814,3687.2,3686.6,0.55]
[1732958663175,2.71216,3687.1,3686.6,0.55]
[1732958663385,2.71216,3687.1,3686.3,3.26271]
[1732958663548,2.71216,3687.1,3686.5,0.55]
[1732958663882,2.71216,3687.1,3686.5,3.26259]
[1732958664171,2.71216,3687.1,3686.7,0.55]
[1732958664475,1.6025,3687.0,3686.5,3.26259]
[1732958665751,1.6025,3687.0,3686.4,0.55]
[1732958665965,2.7119,3687.5,3686.9,0.55]
[1732958666173,1.6025,3687.4,3686.9,3.26223]
[1732958666385,1.6025,3687.4,3687.1,0.55]
[1732958666974,0.03390128,3687.3,3686.9,0.55]
[1732958667136,1.6025,3687.4,3686.9,0.55]
[1732958667685,1.6025,3687.4,3686.8,2.7123]
[1732958667686,2.06932814,3687.2,3686.6,2.71247]
[1732958668253,4.78141814,3687.2,3686.4,0.2711]
[1732958668470,4.78141814,3687.2,3686.5,2.71257]
[1732958668784,2.74607474,3687.1,3686.5,0.55]
[1732958668943,4.22933,3687.0,3686.5,0.55]
[1732958669143,0.03390676,3686.9,3686.5,0.55]
[1732958669744,2.74621676,3686.9,3686.5,0.55]
[1732958670448,2.71231,3686.9,3686.5,0.55]
[1732958670680,2.74621674,3686.9,3686.5,0.55]
[1732958670886,2.71231,3686.9,3686.5,0.55]
[1732958671202,2.74621674,3686.9,3686.5,0.55]
[1732958672073,2.71242,3686.8,3686.4,0.55]
[1732958672269,2.71253,3686.6,3686.4,0.55]
[1732958672453,4.78174814,3686.8,3685.9,3.82647]
[1732958672454,1.5171,3686.4,3685.9,0.2711]
[1732958672654,1.5171,3686.4,3685.6,2.71325]
[1732958672655,2.74665999,3686.3,3685.5,1.1135]
[1732958672854,2.71275,3686.3,3685.7,2.71317]
[1732958673071,3.58642814,3686.4,3686.0,2.71296]
[1732958673266,3.58642814,3686.4,3685.7,2.71317]
[1732958673267,1.5171,3686.4,3685.7,2.71317]
[1732958673589,1.5171,3686.4,3685.5,1.1135]
[1732958673831,1.5171,3686.4,3686.1,2.71288]
[1732958674289,1.5171,3686.4,3685.9,2.71303]
[1732958674484,1.5171,3686.4,3685.7,2.71317]
[1732958674485,1.5171,3686.4,3686.1,0.55]
[1732958674860,3.58642814,3686.4,3686.1,0.55]
[1732958675062,3.58642814,3686.4,3686.0,0.55]
[1732958675269,6.29913814,3686.4,3685.8,0.55]
[1732958675486,4.78203814,3686.4,3685.8,0.55]
[1732958675796,4.30086225,3686.3,3685.8,0.55]
[1732958675993,4.26695,3686.3,3685.8,0.55]
[1732958676195,1.5542,3686.3,3685.8,3.26304]
[1732958676558,1.5542,3686.3,3686.0,0.55]
[1732958678165,4.78170814,3686.8,3685.6,1.1135]
[1732958678166,1.5542,3686.6,3686.1,0.55]
[1732958678398,1.5542,3686.6,3686.3,0.55]
[1732958679104,1.5542,3686.6,3686.0,0.55]
[1732958679304,1.5542,3686.6,3686.2,0.55]
[1732958680078,1.5542,3686.3,3685.5,0.2711]
[1732958680301,1.5542,3685.9,3685.3,2.71347]
[1732958680503,1.58811423,3685.9,3685.3,2.71347]
[1732958681263,1.58811423,3685.9,3685.5,0.55]
[1732958682402,1.58811423,3685.9,3685.3,0.55]
[1732958682609,1.58811423,3685.9,3685.3,3.972524]
[1732958682815,4.30116423,3685.9,3685.0,2.7137]
[1732958682979,2.71324,3685.7,3685.0,2.7137]
[1732958683184,0.03391829,3685.6,3685.0,2.7137]
[1732958683383,2.71327,3685.6,3685.0,2.7137]
[1732958683584,1.5542,3685.5,3685.0,2.7137]
[1732958684077,1.5542,3685.5,3684.9,2.71376]
[1732958684280,0.03391903,3685.4,3684.9,0.681228]
[1732958684495,0.03391903,3685.4,3684.8,2.7138]
[1732958684900,0.03391903,3685.4,3684.9,0.55]
[1732958685420,2.74732903,3685.4,3684.9,0.55]
[1732958685721,0.03391903,3685.4,3684.9,0.55]
[1732958687716,4.26755,3685.5,3684.9,0.55]
[1732958687893,0.0339196,3685.4,3684.9,0.55]
[1732958688391,4.26755,3685.5,3684.9,0.55]
[1732958688596,0.0339196,3685.4,3684.9,0.55]
[1732958688903,0.0339196,3685.4,3684.6,2.98508]
[1732958688904,1.69551959,3685.4,3684.7,0.55]
[1732958689105,2.71349,3685.3,3684.7,3.26391]
[1732958689294,2.71335,3685.5,3684.6,0.55]
[1732958689295,1.6616,3685.1,3684.6,0.55]
[1732958689925,1.6616,3685.1,3684.6,3.888897]
[1732958690984,1.6616,3685.1,3684.7,2.7139]
[1732958691218,1.6616,3685.1,3684.8,0.55]
[1732958691486,1.69552152,3685.1,3684.7,0.55]
[1732958691688,1.6616,3685.1,3684.7,0.55]
[1732958691883,1.6616,3685.1,3684.7,3.26391]
[1732958692098,1.6616,3685.1,3684.6,0.55]
[1732958692283,1.6616,3685.1,3684.6,3.26399]
[1732958694233,1.6616,3685.1,3684.8,0.55]
[1732958694528,1.6616,3685.1,3684.6,3.26399]
[1732958694909,1.6616,3685.1,3684.7,2.71385]
[1732958695127,1.6616,3685.1,3684.8,0.55]
[1732958695825,1.6616,3685.1,3684.9,0.55]
[1732958696688,1.6616,3685.1,3684.6,3.26395]
[1732958697100,1.6616,3685.1,3684.8,3.26384]
[1732958697329,1.6616,3685.1,3684.8,0.55]
[1732958697627,1.6616,3685.1,3684.4,2.98523]
[1732958697833,1.6616,3685.1,3684.8,2.71384]
[1732958698996,1.6616,3685.1,3684.4,0.2711]
[1732958699202,1.69552257,3685.1,3684.4,2.98519]
[1732958699749,1.69552257,3685.1,3684.5,2.71405]
[1732958700136,1.6616,3685.1,3684.5,2.71405]
[1732958701415,1.6616,3685.1,3684.6,2.71398]
[1732958702211,1.6616,3685.1,3684.4,2.98522]
[1732958702416,1.6616,3685.1,3684.5,2.71406]
[1732958702618,1.6616,3685.1,3684.6,2.71397]
[1732958703044,0.03392331,3685.0,3684.4,2.98518]
[1732958703228,4.78322814,3684.8,3684.0,0.55]
[1732958703440,4.78322814,3684.8,3683.8,2.71617288]
[1732958703441,2.71408,3684.5,3683.8,0.00165288]
[1732958703603,1.69552656,3684.7,3683.8,2.66619288]
[1732958703604,1.6616,3684.3,3683.8,2.66619288]
[1732958703800,1.6616,3684.3,3684.0,2.71443]
[1732958704009,1.6616,3685.1,3684.9,2.71371]
[1732958704241,1.6616,3685.1,3685.0,2.7137]
[1732958704540,1.6616,3685.1,3684.0,1.1135]
[1732958704541,1.6616,3685.1,3684.8,2.7138]
[1732958704843,1.6616,3685.1,3684.8,2.71379]
[1732958705144,1.6616,3685.1,3684.6,2.71397]
[1732958705145,0.03392238,3685.0,3684.6,2.71397]
[1732958705802,0.03392238,3685.0,3684.3,0.2711]
[1732958706047,1.6616,3685.1,3684.3,0.2711]
[1732958706202,1.6616,3685.1,3684.8,2.71383]
[1732958706535,1.6616,3685.1,3684.9,2.71377]
[1732958706737,1.6616,3685.1,3685.0,2.7137]
[1732958706900,0.13835883,3686.2,3685.6,2.71326]
[1732958706901,1.6616,3685.7,3685.6,2.71326]
[1732958707248,1.6616,3685.9,3685.6,2.71326]
[1732958707446,1.88984239,3686.3,3685.8,2.71311]
[1732958707665,1.6377,3686.3,3685.8,2.71311]
[1732958707870,1.6377,3686.3,3685.6,2.71326]
[1732958708152,0.83533239,3686.2,3685.6,2.71326]
[1732958708471,0.86924749,3686.2,3685.6,2.71326]
[1732958708759,0.86924749,3686.2,3685.4,2.7134]
[1732958708928,1.5732,3686.1,3685.4,2.7134]
[1732958709274,0.39782828,3686.0,3685.4,2.7134]
[1732958709415,0.87815215,3686.0,3685.4,2.7134]
[1732958710353,0.84423513,3686.0,3685.4,2.7134]
[1732958710564,0.84423513,3686.0,3685.5,2.71333]
[1732958710917,0.36391126,3686.0,3684.9,1.1135]
[1732958711258,1.5732,3686.1,3685.9,2.71304]
[1732958711760,1.93711126,3686.1,3685.7,2.71314]
[1732958711918,0.39782428,3686.0,3685.7,2.71314]
[1732958712112,0.36391126,3686.0,3685.8,2.71309]
[1732958712352,0.39782433,3686.0,3685.8,2.71309]
[1732958712556,0.36391126,3686.0,3685.8,2.71309]
[1732958712750,0.36391126,3686.0,3685.5,2.71333]
[1732958712953,0.36391126,3686.0,3685.3,2.71347]
[1732958712954,0.36391126,3686.0,3685.6,2.71325]
[1732958714055,0.36391126,3686.0,3685.0,0.55]
[1732958714260,1.60711436,3686.1,3685.8,2.71309]
[1732958714424,1.5732,3686.1,3685.8,2.71309]
[1732958715018,1.5732,3686.1,3685.6,2.71325]
[1732958715251,1.5732,3686.1,3685.7,5.42622]
[1732958715460,1.5732,3686.1,3685.7,2.71311]
[1732958715632,1.5732,3686.1,3685.8,2.7131]
[1732958716220,1.5732,3686.1,3685.7,2.71317]
[1732958716852,0.03391309,3686.0,3685.7,2.71317]
[1732958717158,1.5732,3686.1,3685.8,2.71309]
[1732958718161,1.5732,3686.1,3685.3,2.71342]
[1732958718323,1.5806,3686.5,3686.3,2.71274]
[1732958718522,1.5806,3686.5,3685.4,1.672835]
[1732958718523,2.32161409,3687.1,3686.8,2.71236]
[1732958718819,2.06932814,3687.1,3686.8,2.71236]
[1732958719059,2.06932814,3687.1,3686.6,2.71249]
[1732958719220,0.39889841,3687.0,3686.6,2.71249]
[1732958719422,1.5806,3686.9,3686.4,2.71262]
[1732958720267,1.5806,3687.4,3687.2,2.71207]
[1732958721720,1.5806,3687.4,3687.0,2.71222]
[1732958722125,0.03390317,3687.3,3686.8,2.71235]
[1732958722356,0.16145032,3687.2,3686.8,2.71235]
[1732958722721,0.16145032,3687.2,3686.9,2.71227]
[1732958723165,0.16145032,3687.2,3686.8,2.71235]
[1732958723350,0.16145032,3687.2,3686.4,1.1135]
[1732958723660,0.03390317,3687.3,3686.9,2.71224]
[1732958724077,1.5806,3687.4,3687.0,2.71222]
[1732958724243,1.5806,3687.4,3687.1,2.71215]
[1732958724639,1.5806,3687.4,3687.0,2.71222]
[1732958724843,1.5806,3687.4,3687.3,2.71201]
[1732958725968,1.5806,3687.4,3687.1,2.71212]
[1732958726177,1.5806,3687.2,3686.4,2.71266]
[1732958726494,1.5806,3687.2,3686.0,1.1135]
[1732958726495,0.03390722,3687.1,3686.2,2.7128]
[1732958726857,0.03390722,3687.1,3686.0,1.1135]
[1732958727052,1.5806,3687.2,3686.5,2.71254]
[1732958727260,0.58675219,3687.1,3686.5,2.71254]
[1732958727654,0.58675219,3687.1,3686.6,2.71246]
[1732958728851,0.58675219,3687.1,3686.7,2.71244]
[1732958729064,1.5806,3687.2,3686.9,2.71229]
[1732958729269,1.5806,3687.2,3687.0,2.71221]
[1732958729772,0.32257793,3687.8,3687.3,2.71197]
[1732958729773,1.5057,3687.6,3687.3,2.71197]
[1732958730893,0.03390038,3687.5,3687.3,2.71197]
[1732958731199,0.03390038,3687.5,3686.6,3.82596]
[1732958731354,2.13777285,3687.4,3686.8,2.71232]
[1732958733790,2.13777285,3687.4,3686.6,2.71246]
[1732958733999,2.13777285,3687.4,3686.8,2.71231]
[1732958734404,2.13777285,3687.4,3686.6,2.71246]
[1732958734561,2.13777285,3687.4,3687.0,2.7122]
[1732958734965,0.21377729,3687.3,3686.8,2.71231]
[1732958735309,0.21377729,3687.3,3686.9,2.71228]
[1732958735668,0.24768172,3687.3,3686.5,2.71258]
[1732958735867,0.24768172,3687.3,3686.8,2.71231]
[1732958736214,0.21377729,3687.3,3687.0,2.71222]
[1732958737463,0.21377729,3687.3,3686.3,1.3846]
[1732958737719,0.21377729,3687.3,3686.8,2.71231]
[1732958737892,0.17194773,3687.2,3686.8,2.71231]
[1732958738403,0.17194773,3687.2,3686.8,2.46731]
[1732958739105,1.6329,3687.1,3686.4,2.71266]
[1732958739309,0.03390502,3687.0,3686.7,2.71243]
[1732958739677,3.70222814,3686.9,3686.2,2.71281]
[1732958739894,1.6329,3686.8,3686.2,2.71281]
[1732958740474,0.03391023,3686.7,3686.2,2.71281]
[1732958740671,1.6329,3686.8,3686.2,2.71281]
[1732958741273,1.6329,3686.8,3686.3,2.71269]
[1732958741506,1.6329,3686.8,3686.4,2.71261]
[1732958741906,1.6329,3687.5,3685.8,1.1135]
[1732958742113,0.25205272,3687.4,3686.7,1.1135]
[1732958742459,1.6329,3687.5,3687.4,2.71193]
[1732958742751,2.06932814,3687.9,3687.4,2.71193]
[1732958742752,1.6329,3687.8,3687.4,2.71193]
[1732958744854,1.6329,3687.8,3687.7,2.71171]
[1732958745008,1.6329,3687.8,3687.6,2.71174]
[1732958745223,1.6329,3687.8,3687.3,2.71199]
[1732958745427,1.6329,3687.8,3687.5,2.71186]
[1732958746060,1.82480138,3687.8,3687.3,2.71195]
[1732958746369,1.82480138,3687.8,3687.4,2.71192]
[1732958747249,1.6329,3688.1,3687.1,1.1135]